fUST/lending_fUST_20251012
["ID","MTS","AMOUNT","RATE_DAILY","PERIOD"]
[390922348,1760220659385,-794.0,0.00029666,2]
[390922349,1760220659396,-550.0,0.00029764,5]
[390922350,1760220659405,-2609.37557469,0.0003,3]
[390922351,1760220659415,-793.0,0.00030054,2]
[390922352,1760220659424,-431.21677659,0.00030069,2]
[390922353,1760220659434,-189.5,0.00030136,120]
[390922354,1760220659443,-4509.91,0.00030136,8]
[390922355,1760220659451,-154.809388,0.000302,8]
[390922356,1760220659461,-189.5,0.00030273,120]
[390922357,1760220659471,-1418.64351268,0.00030292,2]
[390922358,1760220659480,-650.0,0.00030312,5]
[390922359,1760220659489,-793.0,0.0003032,2]
[390922360,1760220659499,-10000.0,0.00030382,2]
[390922361,1760220659508,-7290.0,0.00030382,2]
[390922362,1760220659517,-150.0,0.00030385,2]
[390922363,1760220659527,-250.0,0.00030385,10]
[390922364,1760220659536,-250.0,0.00030385,10]
[390922365,1760220659546,-250.0,0.00030385,10]
[390922366,1760220659556,-497.912122,0.00030385,10]
[390922367,1760220659565,-793.0,0.00030387,7]
[390922368,1760220659574,-793.0,0.00030389,2]
[390922369,1760220659584,-3787.95,0.000304,2]
[390922370,1760220659593,-189.5,0.0003041,120]
[390922371,1760220659603,-794.0,0.00030446,2]
[390922372,1760220659612,-250.0,0.00030478,2]
[390922373,1760220659622,-793.0,0.00030507,2]
[390922374,1760220659631,-87139.8118367,0.00030536,2]
[390922375,1760220659640,-793.0,0.0003054,2]
[390922376,1760220659649,-189.5,0.00030547,120]
[390922377,1760220659657,-1000.0,0.00030573,5]
[390922378,1760220659667,-1418.64351268,0.00030576,2]
[390922379,1760220659676,-500.0,0.00030599,11]
[390922380,1760220659685,-793.0,0.00030668,2]
[390922381,1760220659694,-454.31767534,0.00030669,2]
[390922382,1760220659703,-189.5,0.00030684,120]
[390922383,1760220659712,-664.75,0.00030684,14]
[390922384,1760220659721,-1418.64351268,0.00030714,2]
[390922385,1760220659730,-500.0,0.00030759,11]
[390922386,1760220659740,-189.5,0.00030821,120]
[390922387,1760220659822,-750.0,0.0003086,5]
[390922388,1760220659832,-6769.95,0.000309,2]
[390922389,1760220659842,-250.0,0.000309,10]
[390922390,1760220659852,-189.5,0.00030958,120]
[390922391,1760220659861,-250.0,0.00031,10]
[390922392,1760220659870,-1000.0,0.0003102,15]
[390922393,1760220659879,-1000.0,0.00031091,30]
[390922394,1760220659888,-189.5,0.00031095,120]
[390922395,1760220659897,-250.0,0.000311,10]
[390922396,1760220659906,-799.99999997,0.00031157,2]
[390922397,1760220659916,-250.0,0.000312,10]
[390922398,1760220659924,-410.4356376,0.00031205,30]
[390922399,1760220659934,-1418.64351269,0.00031225,2]
[390922400,1760220659943,-189.5,0.00031232,120]
[390922401,1760220659952,-664.75,0.00031232,15]
[390922402,1760220659961,-1200.0,0.00031252,7]
[390922403,1760220659970,-477.41857409,0.00031269,2]
[390922404,1760220659978,-250.0,0.000313,10]
[390922405,1760220659987,-379.165212,0.00031342,30]
[390922406,1760220659996,-831.08426687,0.00031344,2]
[390922407,1760220660006,-189.5,0.00031369,120]
[390922408,1760220660015,-250.0,0.000314,10]
[390922409,1760220660024,-850.0,0.00031408,5]
[390922410,1760220660033,-151.0,0.00031444,30]
[390922411,1760220660043,-151.0,0.00031444,30]
[390922412,1760220660054,-151.0,0.00031444,30]
[390922413,1760220660064,-657386.7126,0.00031444,2]
[390922414,1760220660074,-151.0,0.00031444,30]
[390922415,1760220660083,-151.0,0.00031444,30]
[390922416,1760220660092,-151.0,0.00031444,30]
[390922417,1760220660102,-151.0,0.00031444,30]
[390922418,1760220660112,-151.0,0.00031444,30]
[390922419,1760220660121,-269.712476,0.00031444,30]
[390922420,1760220660131,-151.0,0.00031444,30]
[390922421,1760220660140,-301.99999935,0.00031444,30]
[390922422,1760220660150,-151.0,0.00031444,30]
[390922423,1760220660160,-151.0,0.00031444,30]
[390922424,1760220660169,-151.0,0.00031444,30]
[390922425,1760220660183,-151.0,0.00031444,30]
[390922426,1760220660192,-151.0,0.00031444,30]
[390922427,1760220660202,-151.0,0.00031444,30]
[390922428,1760220660211,-151.0,0.00031444,30]
[390922429,1760220660221,-151.0,0.00031444,30]
[390922430,1760220660231,-185.382173,0.00031444,30]
[390922431,1760220660240,-185.382173,0.00031444,30]
[390922432,1760220660250,-185.382173,0.00031444,30]
[390922433,1760220660259,-151.0,0.00031444,30]
[390922434,1760220660268,-185.382173,0.00031444,30]
[390922435,1760220660277,-151.0,0.00031444,30]
[390922436,1760220660287,-151.0,0.00031444,30]
[390922437,1760220660296,-151.0,0.00031444,2]
[390922438,1760220660305,-151.0,0.00031444,30]
[390922439,1760220660315,-151.0,0.00031444,30]
[390922440,1760220660325,-151.0,0.00031444,30]
[390922441,1760220660335,-151.0,0.00031444,30]
[390922442,1760220660344,-151.0,0.00031444,30]
[390922443,1760220660353,-151.0,0.00031444,30]
[390922444,1760220660362,-350.907584,0.00031444,30]
[390922445,1760220660371,-350.907584,0.00031444,30]
[390922446,1760220660381,-350.907584,0.00031444,30]
[390922447,1760220660402,-350.907584,0.00031444,30]
[390922448,1760220660413,-151.0,0.00031444,30]
[390922449,1760220660423,-151.0,0.00031444,30]
[390922450,1760220660432,-151.0,0.00031444,30]
[390922451,1760220660442,-151.0,0.00031444,30]
[390922452,1760220660451,-151.0,0.00031444,30]
[390922453,1760220660460,-151.0,0.00031444,30]
[390922454,1760220660469,-151.0,0.00031444,30]
[390922455,1760220660478,-151.0,0.00031444,30]
[390922456,1760220660487,-151.0,0.00031444,30]
[390922457,1760220660496,-151.0,0.00031444,30]
[390922458,1760220660504,-151.0,0.00031444,30]
[390922459,1760220660513,-246.234086,0.00031444,30]
[390922460,1760220660522,-151.0,0.00031444,30]
[390922461,1760220660531,-151.0,0.00031444,30]
[390922462,1760220660540,-151.0,0.00031444,30]
[390922463,1760220660549,-151.0,0.00031444,30]
[390922464,1760220660558,-151.0,0.00031444,30]
[390922465,1760220660567,-151.0,0.00031444,30]
[390922466,1760220660576,-207.662129,0.00031444,30]
[390922467,1760220660586,-207.662129,0.00031444,30]
[390922468,1760220660595,-207.662129,0.00031444,30]
[390922469,1760220660604,-207.662129,0.00031444,30]
[390922470,1760220660616,-151.0,0.00031444,30]
[390922471,1760220660625,-151.0,0.00031444,30]
[390922472,1760220660634,-151.0,0.00031444,30]
[390922473,1760220660643,-259.841167,0.00031444,30]
[390922474,1760220660653,-151.0,0.00031444,30]
[390922475,1760220660662,-238.495112,0.00031444,30]
[390922476,1760220660671,-151.0,0.00031444,30]
[390922477,1760220660680,-151.0,0.00031444,30]
[390922478,1760220660690,-151.0,0.00031444,30]
[390922479,1760220660699,-151.0,0.00031444,30]
[390922480,1760220660708,-151.0,0.00031444,30]
[390922481,1760220660717,-234.5926,0.00031444,30]
[390922482,1760220660727,-443.042097,0.00031444,30]
[390922483,1760220660736,-443.042097,0.00031444,30]
[390922484,1760220660745,-443.042097,0.00031444,30]
[390922485,1760220660755,-443.042097,0.00031444,30]
[390922486,1760220660764,-151.0,0.00031444,30]
[390922487,1760220660773,-151.915734,0.00031444,30]
[390922488,1760220660782,-151.915734,0.00031444,30]
[390922489,1760220660791,-151.915734,0.00031444,30]
[390922490,1760220660800,-151.915734,0.00031444,30]
[390922491,1760220660810,-151.0,0.00031444,30]
[390922492,1760220660819,-293.53439,0.00031444,30]
[390922493,1760220660828,-821.94325,0.00031444,30]
[390922494,1760220660840,-821.94325,0.00031444,30]
[390922495,1760220660849,-821.94325,0.00031444,30]
[390922496,1760220660857,-821.94325,0.00031444,30]
[390922497,1760220660867,-151.0,0.00031444,30]
[390922498,1760220660876,-151.0,0.00031444,30]
[390922499,1760220660885,-150.0,0.00031471,2]
[390922500,1760220660895,-189.5,0.00031506,120]
[390922501,1760220660904,-4509.91,0.00031506,10]
[390922502,1760220660913,-980.0,0.0003154,2]
[390922503,1760220660923,-630.0,0.0003154,2]
[390922504,1760220660932,-2159.0,0.0003154,2]
[390922505,1760220660941,-189.5,0.00031643,120]
[390922506,1760220660950,-150.0,0.00031716,2]
[390922507,1760220660959,-150.0,0.00031716,2]
[390922508,1760220660969,-189.5,0.0003178,120]
[390922509,1760220660978,-664.75,0.0003178,16]
[390922510,1760220660987,-1000.0,0.00031833,4]
[390922511,1760220660996,-500.51947283,0.00031869,2]
[390922512,1760220661005,-189.5,0.00031917,120]
[390922513,1760220661015,-2000.0,0.00031942,5]
[390922514,1760220661025,-950.0,0.00031956,5]
[390922515,1760220661034,-189.5,0.00032054,120]
[390922516,1760220661043,-600.0,0.00032106,2]
[390922517,1760220661052,-160.0,0.0003214,4]
[390922518,1760220661062,-189.5,0.00032191,120]
[390922519,1760220661071,-806.7321194,0.00032281,2]
[390922520,1760220661080,-189.5,0.00032328,120]
[390922521,1760220661089,-664.75,0.00032328,17]
[390922522,1760220661099,-167.649802,0.00032379,60]
[390922523,1760220661108,-1560.61363845,0.0003244,2]
[390922524,1760220661117,-600.0,0.00032441,2]
[390922525,1760220661126,-189.5,0.00032465,120]
[390922526,1760220661135,-523.62037158,0.00032469,2]
[390922527,1760220661145,-3787.95,0.000325,2]
[390922528,1760220661154,-1050.0,0.00032504,5]
[390922529,1760220661163,-189.5,0.00032602,120]
[390922530,1760220661173,-197.0,0.0003272,32]
[390922531,1760220661182,-189.5,0.00032739,120]
[390922532,1760220661259,-600.0,0.00032775,2]
[390922533,1760220661269,-154.809388,0.00032819,10]
[390922534,1760220661278,-189.5,0.00032876,120]
[390922535,1760220661288,-664.75,0.00032876,18]
[390922536,1760220661297,-4509.91,0.00032876,120]
[390922537,1760220661306,-1200.0,0.00032896,7]
[390922538,1760220661315,-6769.95,0.000329,14]
[390922539,1760220661325,-1722.71334,0.00033005,2]
[390922540,1760220661335,-189.5,0.00033013,120]
[390922541,1760220661344,-433.10368179,0.00033052,5]
[390922542,1760220661354,-546.72127033,0.00033069,2]
[390922543,1760220661364,-600.0,0.0003311,2]
[390922544,1760220661373,-189.5,0.0003315,120]
[390922545,1760220661382,-834.991497,0.00033165,2]
[390922546,1760220661394,-154.809388,0.0003325,2]
[390922547,1760220661404,-152.19818,0.0003325,2]
[390922548,1760220661414,-151.0,0.00033259,30]
[390922549,1760220661424,-151.0,0.00033259,30]
[390922550,1760220661434,-151.0,0.00033259,30]
[390922551,1760220661443,-156.587,0.00033259,30]
[390922552,1760220661452,-500.0,0.00033259,30]
[390922553,1760220661463,-1959.24404896,0.00033259,30]
[390922554,1760220661472,-500.0,0.00033259,30]
[390922555,1760220661481,-156.587,0.00033259,30]
[390922556,1760220661490,-500.0,0.00033259,30]
[390922557,1760220661500,-17940.1,0.00033259,30]
[390922558,1760220661509,-250.0,0.00033259,30]
[390922559,1760220661518,-151.0,0.00033259,30]
[390922560,1760220661527,-151.0,0.00033261,9]
[390922561,1760220661536,-151.0,0.00033261,9]
[390922562,1760220661546,-500.0,0.00033261,9]
[390922563,1760220661555,-151.0,0.00033261,9]
[390922564,1760220661564,-151.0,0.00033261,9]
[390922565,1760220661573,-500.0,0.00033261,9]
[390922566,1760220661583,-244.999997,0.00033261,9]
[390922567,1760220661592,-500.0,0.00033261,9]
[390922568,1760220661602,-151.0,0.00033261,9]
[390922569,1760220661612,-151.0,0.00033261,9]
[390922570,1760220661622,-151.0,0.00033261,9]
[390922571,1760220661634,-151.0,0.00033261,9]
[390922572,1760220661644,-500.0,0.00033261,9]
[390922573,1760220661655,-500.0,0.00033261,9]
[390922574,1760220661665,-500.0,0.00033261,9]
[390922575,1760220661675,-500.0,0.00033261,9]
[390922576,1760220661686,-500.0,0.00033261,9]
[390922577,1760220661696,-500.0,0.00033261,9]
[390922578,1760220661707,-151.0,0.00033261,9]
[390922579,1760220661717,-151.0,0.00033261,9]
[390922580,1760220661728,-500.0,0.00033261,9]
[390922581,1760220661738,-151.0,0.00033261,9]
[390922582,1760220661748,-500.0,0.00033261,9]
[390922583,1760220661759,-151.0,0.00033261,9]
[390922584,1760220661769,-151.0,0.00033261,9]
[390922585,1760220661778,-151.0,0.00033261,9]
[390922586,1760220661788,-500.0,0.00033261,9]
[390922587,1760220661797,-500.0,0.00033261,9]
[390922588,1760220661806,-500.0,0.00033261,9]
[390922589,1760220661815,-189.60822486,0.00033287,120]
[390922590,1760220661825,-2111.59160219,0.00033312,5]
[390922591,1760220661836,-199.13625035,0.00033316,9]
[390922592,1760220661846,-500.0,0.00033316,9]
[390922593,1760220661855,-151.0,0.00033316,9]
[390922594,1760220661864,-245.50022833,0.00033316,9]
[390922595,1760220661874,-500.0,0.00033316,9]
[390922596,1760220661883,-610.17235922,0.00033316,9]
[390922597,1760220661892,-151.0,0.00033316,9]
[390922598,1760220661902,-151.0,0.00033316,9]
[390922599,1760220661911,-223.19208986,0.00033316,9]
[390922600,1760220661920,-500.0,0.00033316,9]
[390922601,1760220661929,-500.0,0.00033316,9]
[390922602,1760220661939,-500.0,0.00033316,9]
[390922603,1760220661948,-500.0,0.00033316,9]
[390922604,1760220661957,-500.0,0.00033316,9]
[390922605,1760220661967,-500.0,0.00033316,9]
[390922606,1760220661976,-151.0,0.00033316,9]
[390922607,1760220661985,-151.0,0.00033316,9]
[390922608,1760220661995,-500.0,0.00033316,9]
[390922609,1760220662004,-151.0,0.00033316,9]
[390922610,1760220662013,-500.0,0.00033316,9]
[390922611,1760220662022,-151.0,0.00033316,9]
[390922612,1760220662031,-151.0,0.00033316,9]
[390922613,1760220662040,-500.0,0.00033316,9]
[390922614,1760220662049,-500.0,0.00033316,9]
[390922615,1760220662058,-500.0,0.00033316,9]
[390922616,1760220662068,-500.0,0.00033371,9]
[390922617,1760220662077,-214.78584438,0.00033371,9]
[390922618,1760220662089,-151.0,0.00033371,9]
[390922619,1760220662099,-151.0,0.00033371,9]
[390922620,1760220662108,-500.0,0.00033371,9]
[390922621,1760220662118,-340.29465425,0.00033371,9]
[390922622,1760220662128,-500.0,0.00033371,9]
[390922623,1760220662139,-572.08097716,0.00033371,9]
[390922624,1760220662149,-500.0,0.00033371,9]
[390922625,1760220662159,-151.0,0.00033371,9]
[390922626,1760220662169,-245.0,0.00033371,9]
[390922627,1760220662178,-151.0,0.00033371,9]
[390922628,1760220662187,-500.0,0.00033371,9]
[390922629,1760220662197,-151.40055561,0.00033371,9]
[390922630,1760220662206,-500.0,0.00033371,9]
[390922631,1760220662216,-215.41218431,0.00033371,9]
[390922632,1760220662225,-151.40135078,0.00033371,9]
[390922633,1760220662235,-500.0,0.00033371,9]
[390922634,1760220662245,-500.0,0.00033371,9]
[390922635,1760220662255,-500.0,0.00033371,9]
[390922636,1760220662264,-151.0,0.000334,12]
[390922637,1760220662274,-664.75,0.00033424,19]
[390922638,1760220662283,-500.0,0.00033425,9]
[390922639,1760220662292,-151.0,0.00033425,9]
[390922640,1760220662302,-151.0,0.00033425,9]
[390922641,1760220662311,-516.3055555,0.00033425,9]
[390922642,1760220662321,-500.0,0.00033425,9]
[390922643,1760220662330,-302.0,0.00033425,9]
[390922644,1760220662345,-198.0,0.00033425,9]
[390922645,1760220662354,-255.0,0.00033425,9]
[390922646,1760220662364,-152.19016605,0.00033425,9]
[390922647,1760220662374,-611.80567964,0.00033425,9]
[390922648,1760220662385,-500.0,0.00033425,9]
[390922649,1760220662399,-500.0,0.00033425,9]
[390922650,1760220662409,-314665.21844868,0.00033444,2]
[390922651,1760220662427,-11186.59868844,0.00033444,2]
[390922652,1760220662509,-500.0,0.00022872,2]
[390922653,1760220662518,-550.71,0.00022901,2]
[390922654,1760220662528,-550.71,0.00022901,2]
[390922655,1760220662537,-550.71,0.00022901,2]
[390922656,1760220662547,-550.71,0.00022901,2]
[390922657,1760220662557,-550.71,0.00022901,2]
[390922658,1760220662566,-550.71,0.00022901,2]
[390922659,1760220662644,-550.72,0.00022901,2]
[390922660,1760220662653,-151.0,0.000249,7]
[390922661,1760220662663,-151.0,0.00031444,30]
[390922662,1760220662673,-50134.02220922,0.00033444,2]
[390922663,1760220662684,-28908.53369419,0.00033444,2]
[390922664,1760220662695,-12006.49857134,0.00033444,2]
[390922665,1760220662784,-174.76,0.00022862,10]
[390922666,1760220662794,-193.87041273,0.000229,2]
[390922667,1760220662805,-306.12958727,0.000229,2]
[390922668,1760220662815,-500.0,0.000229,2]
[390922669,1760220662824,-500.0,0.00023001,2]
[390922670,1760220662833,-500.0,0.00023001,2]
[390922671,1760220662845,-500.0,0.00023001,2]
[390922672,1760220662855,-393.2,0.00023001,2]
[390922673,1760220662864,-12533.00997782,0.00033444,2]
[390922674,1760220662876,-1880.83698528,0.00033444,2]
[390922675,1760220662887,-22496.69435797,0.00033444,2]
[390922676,1760220662954,-500.0,0.000229,2]
[390922677,1760220662964,-235.04964314,0.000229,2]
[390922678,1760220662976,-264.95035686,0.000229,2]
[390922679,1760220662986,-500.0,0.000229,2]
[390922680,1760220662996,-478.0878655,0.000229,2]
[390922681,1760220663006,-349.69556643,0.000229,2]
[390922682,1760220663018,-150.30443357,0.000229,2]
[390922683,1760220663028,-500.0,0.000229,2]
[390922684,1760220663038,-500.0,0.000229,2]
[390922685,1760220663048,-500.0,0.000229,2]
[390922686,1760220663058,-500.0,0.000229,2]
[390922687,1760220663067,-500.0,0.000229,2]
[390922688,1760220663078,-556.2294767,0.000229,2]
[390922689,1760220663088,-50000.0,0.000229,2]
[390922690,1760220663099,-69426.6289518,0.00033444,2]
[390922691,1760220663115,-350248.33791526,0.00033444,2]
[390922692,1760220663125,-151.0,0.00033444,30]
[390922693,1760220663138,-151.0,0.00033444,30]
[390922694,1760220663148,-151.0,0.00033444,30]
[390922695,1760220663159,-151.0,0.00033444,30]
[390922696,1760220663168,-151.0,0.00033444,30]
[390922697,1760220663178,-151.0,0.00033444,30]
[390922698,1760220663188,-256.311674,0.00033444,30]
[390922699,1760220663198,-151.0,0.00033444,30]
[390922700,1760220663209,-151.0,0.00033444,15]
[390922701,1760220663218,-151.0,0.00033444,15]
[390922702,1760220663227,-163.622473,0.00033444,15]
[390922703,1760220663237,-151.0,0.00033444,30]
[390922704,1760220663246,-151.0,0.00033444,30]
[390922705,1760220663256,-151.0,0.00033444,30]
[390922706,1760220663266,-151.0,0.00033444,30]
[390922707,1760220663275,-151.0,0.00033444,30]
[390922708,1760220663284,-151.0,0.00033444,30]
[390922709,1760220663294,-151.0,0.00033444,30]
[390922710,1760220663303,-151.0,0.00033444,30]
[390922711,1760220663314,-151.0,0.00033444,30]
[390922712,1760220663324,-185.382173,0.00033444,30]
[390922713,1760220663335,-185.382173,0.00033444,30]
[390922714,1760220663344,-185.382173,0.00033444,30]
[390922715,1760220663354,-185.382173,0.00033444,30]
[390922716,1760220663363,-151.0,0.00033444,30]
[390922717,1760220663373,-151.0,0.00033444,2]
[390922718,1760220663385,-151.0,0.00033444,30]
[390922719,1760220663398,-151.0,0.00033444,30]
[390922720,1760220663408,-151.0,0.00033444,30]
[390922721,1760220663418,-151.0,0.00033444,30]
[390922722,1760220663427,-151.0,0.00033444,30]
[390922723,1760220663437,-350.907584,0.00033444,30]
[390922724,1760220663446,-350.907584,0.00033444,30]
[390922725,1760220663456,-350.907584,0.00033444,30]
[390922726,1760220663467,-350.907584,0.00033444,30]
[390922727,1760220663476,-151.0,0.00033444,30]
[390922728,1760220663485,-151.0,0.00033444,30]
[390922729,1760220663495,-151.0,0.00033444,30]
[390922730,1760220663505,-151.0,0.00033444,30]
[390922731,1760220663515,-188.55340839,0.00033444,30]
[390922732,1760220663524,-151.0,0.00033444,30]
[390922733,1760220663533,-151.0,0.00033444,30]
[390922734,1760220663543,-151.0,0.00033444,30]
[390922735,1760220663552,-151.0,0.00033444,30]
[390922736,1760220663562,-159.128561,0.00033444,30]
[390922737,1760220663571,-151.0,0.00033444,30]
[390922738,1760220663580,-151.0,0.00033444,30]
[390922739,1760220663590,-211.200329,0.00033444,30]
[390922740,1760220663600,-200.0,0.00033444,7]
[390922741,1760220663609,-200.0,0.00033444,7]
[390922742,1760220663618,-200.0,0.00033444,7]
[390922743,1760220663628,-200.0,0.00033444,7]
[390922744,1760220663638,-200.0,0.00033444,7]
[390922745,1760220663647,-151.0,0.00033444,30]
[390922746,1760220663656,-249.362024,0.00033444,30]
[390922747,1760220663665,-207.662129,0.00033444,30]
[390922748,1760220663674,-207.662129,0.00033444,30]
[390922749,1760220663683,-207.662129,0.00033444,30]
[390922750,1760220663693,-207.662129,0.00033444,30]
[390922751,1760220663702,-151.0,0.00033444,30]
[390922752,1760220663712,-151.0,0.00033444,30]
[390922753,1760220663721,-824.656427,0.00033444,2]
[390922754,1760220663731,-151.0,0.00033444,30]
[390922755,1760220663740,-151.0,0.00033444,30]
[390922756,1760220663749,-159.222321,0.00033444,30]
[390922757,1760220663759,-151.0,0.00033444,30]
[390922758,1760220663768,-151.0,0.00033444,30]
[390922759,1760220663778,-443.042097,0.00033444,30]
[390922760,1760220663787,-443.042097,0.00033444,30]
[390922761,1760220663796,-443.042097,0.00033444,30]
[390922762,1760220663806,-443.042097,0.00033444,30]
[390922763,1760220663815,-151.0,0.00033444,30]
[390922764,1760220663893,-151.915734,0.00033444,30]
[390922765,1760220663904,-151.915734,0.00033444,30]
[390922766,1760220663913,-151.915734,0.00033444,30]
[390922767,1760220663923,-151.915734,0.00033444,30]
[390922768,1760220663932,-692.46,0.00033444,2]
[390922769,1760220663942,-821.94325,0.00033444,30]
[390922770,1760220663951,-821.94325,0.00033444,30]
[390922771,1760220663960,-821.94325,0.00033444,30]
[390922772,1760220663970,-821.94325,0.00033444,30]
[390922773,1760220663980,-151.0,0.00033444,30]
[390922774,1760220663990,-151.0,0.00033444,30]
[390922775,1760220663999,-151.0,0.00033444,30]
[390922776,1760220664009,-500.0,0.00033452,10]
[390922777,1760220664019,-500.0,0.00033452,15]
[390922778,1760220664029,-284.0,0.00033452,2]
[390922779,1760220664039,-159.88976109,0.0003348,9]
[390922780,1760220664048,-198.0,0.0003348,9]
[390922781,1760220664058,-271.43195023,0.0003348,9]
[390922782,1760220664067,-500.0,0.0003348,9]
[390922783,1760220664077,-500.0,0.0003348,9]
[390922784,1760220664087,-500.0,0.0003348,9]
[390922785,1760220664096,-500.0,0.00033535,9]
[390922786,1760220664105,-151.0,0.00033535,9]
[390922787,1760220664114,-190.28614787,0.00033535,9]
[390922788,1760220664123,-154.809388,0.0003357,7]
[390922789,1760220664133,-500.0,0.0003359,9]
[390922790,1760220664142,-500.0,0.00033645,9]
[390922791,1760220664154,-569.82216907,0.00033669,2]
[390922792,1760220664164,-500.0,0.00033699,9]
[390922793,1760220664174,-500.0,0.00033754,9]
[390922794,1760220664184,-500.0,0.00033809,9]
[390922795,1760220664193,-500.0,0.00033835,5]
[390922796,1760220664203,-500.0,0.00033864,9]
[390922797,1760220664217,-500.0,0.00033919,9]
[390922798,1760220664227,-664.75,0.00033972,20]
[390922799,1760220664236,-635.0,0.00033973,9]
[390922800,1760220664246,-203.2621473,0.00034,60]
[390922801,1760220664255,-232.72773226,0.00034,120]
[390922802,1760220664265,-1000.0,0.00034,14]
[390922803,1760220664275,-154.809388,0.00034,60]
[390922804,1760220664284,-2609.37557469,0.00034,120]
[390922805,1760220664293,-1000.0,0.000342,30]
[390922806,1760220664302,-244.0,0.000342,30]
[390922807,1760220664311,-4509.91,0.00034246,120]
[390922808,1760220664320,-592.92306782,0.00034269,2]
[390922809,1760220664329,-720.025068,0.00034359,2]
[390922810,1760220664340,-3787.95,0.000345,2]
[390922811,1760220664349,-664.75,0.0003452,21]
[390922812,1760220664358,-160.0,0.0003453,5]
[390922813,1760220664367,-160.0,0.0003453,5]
[390922814,1760220664377,-160.0,0.0003453,5]
[390922815,1760220664388,-1200.0,0.0003454,7]
[390922816,1760220664397,-980.0,0.0003454,2]
[390922817,1760220664406,-630.0,0.0003454,2]
[390922818,1760220664415,-2159.0,0.0003454,2]
[390922819,1760220664424,-298.98,0.00034577,7]
[390922820,1760220664436,-574.20964785,0.0003461,10]
[390922821,1760220664448,-436.46,0.00034664,10]
[390922822,1760220664457,-200.0,0.00034726,120]
[390922823,1760220664467,-1355.11051679,0.00034728,12]
[390922824,1760220664476,-231.00898746,0.00034869,2]
[390922825,1760220664485,-500.0,0.00034904,30]
[390922826,1760220664494,-500.0,0.00034904,30]
[390922827,1760220664503,-200.0,0.00034949,120]
[390922828,1760220664512,-199.0,0.0003495,38]
[390922829,1760220664522,-1182.0,0.00034978,38]
[390922830,1760220664531,-1000.0,0.00034999,120]
[390922831,1760220664540,-10662.59913989,0.00035,2]
[390922832,1760220664549,-503.03586634,0.00035,7]
[390922833,1760220664558,-2247.27428415,0.00035,20]
[390922834,1760220664567,-160.0,0.00035,14]
[390922835,1760220664576,-654.76437598,0.00035,2]
[390922836,1760220664584,-150.0,0.00035,69]
[390922837,1760220664593,-213.70694945,0.00035,30]
[390922838,1760220664602,-5000.0,0.00035,120]
[390922839,1760220664612,-112459.94750157,0.00035,2]
[390922840,1760220664635,-1581.34479366,0.00035,2]
[390922841,1760220664821,150.0,0.00018898,2]
[390922842,1760220664855,150.0,0.00020616,2]
[390922843,1760220664889,150.0,0.00022334,2]
[390922844,1760220684261,-168.16991624,0.000228,2]
[390922845,1760220684298,-300.0,0.00022871,2]
[390922846,1760220684331,-500.0,0.00022872,2]
[390922847,1760220684363,-500.0,0.000229,2]